[Event "Early-Titled-Tuesday-Blitz-May-14-2024"]
[Site "Chess.com"]
[Date "2024.05.14"]
[Round "3"]
[White "super_emi_26"]
[Black "mightysmasher"]
[Result "1-0"]
[WhiteElo "2892"]
[BlackElo "2550"]
[TimeControl "180+1"]
[EndTime "8:30:02 PDT"]
[Termination "super_emi_26 won by checkmate"]

1. d4 {[%clk 0:02:53]} 1... d5 {[%clk 0:02:58]} 2. c4 {[%clk 0:02:53.4]} 2... e6
{[%clk 0:02:57.5]} 3. Nf3 {[%clk 0:02:53.5]} 3... Be7 {[%clk 0:02:57.6]} 4. g3
{[%clk 0:02:51.1]} 4... Nf6 {[%clk 0:02:57.7]} 5. Bg2 {[%clk 0:02:51.7]} 5...
O-O {[%clk 0:02:58.2]} 6. Qd3 {[%clk 0:02:51.3]} 6... b6 {[%clk 0:02:57.5]} 7.
cxd5 {[%clk 0:02:49.1]} 7... exd5 {[%clk 0:02:57]} 8. Nc3 {[%clk 0:02:48.9]}
8... Bb7 {[%clk 0:02:57]} 9. O-O {[%clk 0:02:48.9]} 9... Na6 {[%clk 0:02:56.9]}
10. Bf4 {[%clk 0:02:49]} 10... c5 {[%clk 0:02:55.3]} 11. Ne5 {[%clk 0:02:49.4]}
11... cxd4 {[%clk 0:02:51]} 12. Qxd4 {[%clk 0:02:50.3]} 12... Bc5 {[%clk
0:02:51]} 13. Qd2 {[%clk 0:02:49.2]} 13... Nc7 {[%clk 0:02:49.8]} 14. Rad1
{[%clk 0:02:44.5]} 14... Qe7 {[%clk 0:02:46.1]} 15. Nd3 {[%clk 0:02:34.3]} 15...
Rad8 {[%clk 0:02:22.7]} 16. Nxc5 {[%clk 0:02:27.1]} 16... bxc5 {[%clk
0:02:13.7]} 17. Qc2 {[%clk 0:02:26.5]} 17... Ne6 {[%clk 0:02:03.4]} 18. Be5
{[%clk 0:02:11.6]} 18... Ng4 {[%clk 0:01:29.8]} 19. Qf5 {[%clk 0:02:09.9]} 19...
Nxe5 {[%clk 0:01:29]} 20. Qxe5 {[%clk 0:02:10.8]} 20... d4 {[%clk 0:01:24.7]}
21. Nd5 {[%clk 0:02:08.5]} 21... Bxd5 {[%clk 0:01:22.7]} 22. Bxd5 {[%clk
0:02:09.4]} 22... Qd6 {[%clk 0:01:21.4]} 23. Qxd6 {[%clk 0:02:07.2]} 23... Rxd6
{[%clk 0:01:22.3]} 24. Bc4 {[%clk 0:02:01.1]} 24... Rfd8 {[%clk 0:01:19.6]} 25.
Rc1 {[%clk 0:02:00.9]} 25... Kf8 {[%clk 0:01:18.6]} 26. Rc2 {[%clk 0:02:01.2]}
26... Rb8 {[%clk 0:01:11.2]} 27. Rfc1 {[%clk 0:02:00.8]} 27... Nc7 {[%clk
0:01:05.3]} 28. Bd3 {[%clk 0:01:57.1]} 28... Ne6 {[%clk 0:01:04.4]} 29. b3
{[%clk 0:01:57.4]} 29... g6 {[%clk 0:01:02.8]} 30. Bc4 {[%clk 0:01:57]} 30... a5
{[%clk 0:01:02]} 31. Kf1 {[%clk 0:01:56.4]} 31... Nc7 {[%clk 0:00:55.2]} 32. Bd3
{[%clk 0:01:56.6]} 32... Ne6 {[%clk 0:00:50.8]} 33. Rc4 {[%clk 0:01:49.2]} 33...
Rb4 {[%clk 0:00:47.1]} 34. R4c2 {[%clk 0:01:44.9]} 34... Rd8 {[%clk 0:00:38]}
35. h4 {[%clk 0:01:44.4]} 35... Ra8 {[%clk 0:00:34.4]} 36. Bc4 {[%clk
0:01:44.5]} 36... Nc7 {[%clk 0:00:31.5]} 37. Bd3 {[%clk 0:01:44.9]} 37... Ne6
{[%clk 0:00:31.3]} 38. Be4 {[%clk 0:01:45.2]} 38... Ra7 {[%clk 0:00:31.1]} 39.
Bd5 {[%clk 0:01:44.4]} 39... a4 {[%clk 0:00:31.3]} 40. Bxe6 {[%clk 0:01:42.7]}
40... fxe6 {[%clk 0:00:30.8]} 41. bxa4 {[%clk 0:01:35.3]} 41... Rbxa4 {[%clk
0:00:30.8]} 42. Rxc5 {[%clk 0:01:35.1]} 42... Rxa2 {[%clk 0:00:30.6]} 43. Re5
{[%clk 0:01:28.1]} 43... Kf7 {[%clk 0:00:29.2]} 44. Re4 {[%clk 0:01:28]} 44...
Rd2 {[%clk 0:00:28.1]} 45. Rc4 {[%clk 0:01:23.7]} 45... Ra1+ {[%clk 0:00:26.3]}
46. Kg2 {[%clk 0:01:20.8]} 46... d3 {[%clk 0:00:25]} 47. Rc7+ {[%clk 0:01:17.5]}
47... Kf6 {[%clk 0:00:24.3]} 48. exd3 {[%clk 0:01:17]} 48... e5 {[%clk
0:00:23.9]} 49. Rc6+ {[%clk 0:01:13]} 49... Kg7 {[%clk 0:00:23.6]} 50. Rxe5
{[%clk 0:01:12.6]} 50... Raa2 {[%clk 0:00:21]} 51. Re7+ {[%clk 0:01:11.5]} 51...
Kf8 {[%clk 0:00:18.9]} 52. Rxh7 {[%clk 0:01:11.7]} 52... Rxf2+ {[%clk
0:00:18.7]} 53. Kh3 {[%clk 0:01:12]} 53... Kg8 {[%clk 0:00:17.6]} 54. Rd7 {[%clk
0:01:10]} 54... Rf8 {[%clk 0:00:16.2]} 55. Rxg6+ {[%clk 0:01:10.1]} 55... Kh8
{[%clk 0:00:16.1]} 56. Rh6+ {[%clk 0:01:10.7]} 56... Kg8 {[%clk 0:00:16.1]} 57.
Rhd6 {[%clk 0:01:11.6]} 57... Rfa8 {[%clk 0:00:15.3]} 58. Rd8+ {[%clk
0:01:11.5]} 58... Rxd8 {[%clk 0:00:15.2]} 59. Rxd8+ {[%clk 0:01:12.4]} 59... Kg7
{[%clk 0:00:16.1]} 60. Rd4 {[%clk 0:01:13.1]} 60... Ra5 {[%clk 0:00:16.3]} 61.
Rg4+ {[%clk 0:01:14]} 61... Kh6 {[%clk 0:00:16.2]} 62. Rf4 {[%clk 0:01:14.9]}
62... Ra1 {[%clk 0:00:16.4]} 63. d4 {[%clk 0:01:15.8]} 63... Rd1 {[%clk
0:00:15.8]} 64. Kg4 {[%clk 0:01:16.7]} 64... Kg6 {[%clk 0:00:15.8]} 65. h5+
{[%clk 0:01:16.8]} 65... Kh6 {[%clk 0:00:16.1]} 66. Rf6+ {[%clk 0:01:17.2]}
66... Kg7 {[%clk 0:00:16.1]} 67. Rd6 {[%clk 0:01:18.1]} 67... Kf7 {[%clk
0:00:16.2]} 68. h6 {[%clk 0:01:17.3]} 68... Ke7 {[%clk 0:00:12.9]} 69. h7 {[%clk
0:01:14.8]} 69... Rh1 {[%clk 0:00:12.3]} 70. Ra6 {[%clk 0:01:15]} 70... Kf7
{[%clk 0:00:11.5]} 71. Ra8 {[%clk 0:01:14.9]} 71... Rxh7 {[%clk 0:00:10.5]} 72.
Ra7+ {[%clk 0:01:15.3]} 72... Kg6 {[%clk 0:00:10.8]} 73. Rxh7 {[%clk 0:01:16]}
73... Kxh7 {[%clk 0:00:11.7]} 74. Kf5 {[%clk 0:01:16.9]} 74... Kg7 {[%clk
0:00:11.9]} 75. Ke6 {[%clk 0:01:17.8]} 75... Kg6 {[%clk 0:00:12.1]} 76. Kd7
{[%clk 0:01:18.7]} 76... Kg5 {[%clk 0:00:13]} 77. d5 {[%clk 0:01:19.2]} 77...
Kg4 {[%clk 0:00:13.9]} 78. d6 {[%clk 0:01:20.1]} 78... Kxg3 {[%clk 0:00:14.8]}
79. Ke6 {[%clk 0:01:21]} 79... Kf4 {[%clk 0:00:15.7]} 80. d7 {[%clk 0:01:21.9]}
80... Ke3 {[%clk 0:00:16.6]} 81. d8=Q {[%clk 0:01:22.8]} 81... Ke2 {[%clk
0:00:15.3]} 82. Qd5 {[%clk 0:01:23.7]} 82... Kf2 {[%clk 0:00:16.2]} 83. Ke5
{[%clk 0:01:24.2]} 83... Ke2 {[%clk 0:00:15.3]} 84. Qb3 {[%clk 0:01:25]} 84...
Kf2 {[%clk 0:00:16.2]} 85. Ke4 {[%clk 0:01:25.7]} 85... Ke1 {[%clk 0:00:17.1]}
86. Qa2 {[%clk 0:01:26]} 86... Kf1 {[%clk 0:00:18]} 87. Kf3 {[%clk 0:01:26.3]}
87... Ke1 {[%clk 0:00:18.2]} 88. Qe2# {[%clk 0:01:26.8]} 1-0

[Event "Early-Titled-Tuesday-Blitz-May-14-2024"]
[Site "Chess.com"]
[Date "2024.05.14"]
[Round "3"]
[White "h4parah5"]
[Black "Saxar85"]
[Result "1/2-1/2"]
[WhiteElo "3033"]
[BlackElo "2777"]
[TimeControl "180+1"]
[EndTime "8:30:06 PDT"]
[Termination "Game drawn - insufficient material"]

1. Nf3 {[%clk 0:03:00.9]} 1... Nf6 {[%clk 0:02:58.2]} 2. c4 {[%clk 0:03:00.5]}
2... e6 {[%clk 0:02:56.3]} 3. b3 {[%clk 0:02:59.1]} 3... d5 {[%clk 0:02:50.9]}
4. Bb2 {[%clk 0:02:58.7]} 4... Be7 {[%clk 0:02:50.3]} 5. e3 {[%clk 0:02:57.6]}
5... O-O {[%clk 0:02:47.8]} 6. Nc3 {[%clk 0:02:57.6]} 6... c5 {[%clk 0:02:35.1]}
7. cxd5 {[%clk 0:02:56.5]} 7... exd5 {[%clk 0:02:34.5]} 8. d4 {[%clk 0:02:55.5]}
8... Nc6 {[%clk 0:02:33.1]} 9. Be2 {[%clk 0:02:51.6]} 9... Bg4 {[%clk
0:02:29.4]} 10. dxc5 {[%clk 0:02:48.9]} 10... Bxc5 {[%clk 0:02:27.9]} 11. O-O
{[%clk 0:02:48.3]} 11... Re8 {[%clk 0:02:22.3]} 12. Rc1 {[%clk 0:02:46.7]} 12...
Bd6 {[%clk 0:01:54.1]} 13. h3 {[%clk 0:02:44.3]} 13... Bxf3 {[%clk 0:01:44.7]}
14. Bxf3 {[%clk 0:02:45.2]} 14... Be5 {[%clk 0:01:44.7]} 15. Rc2 {[%clk
0:02:36.2]} 15... d4 {[%clk 0:01:32.7]} 16. Bxc6 {[%clk 0:02:14.4]} 16... bxc6
{[%clk 0:01:25]} 17. exd4 {[%clk 0:02:12.8]} 17... Qxd4 {[%clk 0:01:02.9]} 18.
Qf3 {[%clk 0:02:06.9]} 18... Qf4 {[%clk 0:00:44.4]} 19. Qxf4 {[%clk 0:02:05.1]}
19... Bxf4 {[%clk 0:00:44.6]} 20. Ne2 {[%clk 0:02:01.9]} 20... Be5 {[%clk
0:00:44.3]} 21. Nd4 {[%clk 0:01:59.1]} 21... Rac8 {[%clk 0:00:40.2]} 22. Rfc1
{[%clk 0:01:52.6]} 22... h5 {[%clk 0:00:35.6]} 23. Kf1 {[%clk 0:01:29.6]} 23...
Nd5 {[%clk 0:00:32.7]} 24. a3 {[%clk 0:00:45.4]} 24... Nf4 {[%clk 0:00:23.4]}
25. Ba1 {[%clk 0:00:44.9]} 25... c5 {[%clk 0:00:20.9]} 26. Nf3 {[%clk
0:00:33.9]} 26... Bxa1 {[%clk 0:00:19.6]} 27. Rxa1 {[%clk 0:00:34.8]} 27... Rb8
{[%clk 0:00:19]} 28. Rb1 {[%clk 0:00:33.8]} 28... Nd3 {[%clk 0:00:18.3]} 29. Rc3
{[%clk 0:00:31.6]} 29... Red8 {[%clk 0:00:17.2]} 30. Rd1 {[%clk 0:00:29.8]}
30... Nf4 {[%clk 0:00:17.2]} 31. Rdc1 {[%clk 0:00:20.7]} 31... a6 {[%clk
0:00:15.6]} 32. h4 {[%clk 0:00:20.3]} 32... Rd3 {[%clk 0:00:14.2]} 33. g3 {[%clk
0:00:19.2]} 33... Rxc3 {[%clk 0:00:13.5]} 34. Rxc3 {[%clk 0:00:18.9]} 34... Ne6
{[%clk 0:00:14.4]} 35. Nd2 {[%clk 0:00:17.8]} 35... Rd8 {[%clk 0:00:13.7]} 36.
Ke2 {[%clk 0:00:17.5]} 36... f5 {[%clk 0:00:12.3]} 37. Nc4 {[%clk 0:00:16.2]}
37... Kf7 {[%clk 0:00:12.2]} 38. Ne5+ {[%clk 0:00:15.8]} 38... Kf6 {[%clk
0:00:12.2]} 39. Nd3 {[%clk 0:00:16.7]} 39... Rd5 {[%clk 0:00:11.7]} 40. Ke3
{[%clk 0:00:16]} 40... a5 {[%clk 0:00:11.3]} 41. Rc4 {[%clk 0:00:16.1]} 41... g5
{[%clk 0:00:10.4]} 42. hxg5+ {[%clk 0:00:15.7]} 42... Kxg5 {[%clk 0:00:10.6]}
43. Ra4 {[%clk 0:00:16.1]} 43... Nd4 {[%clk 0:00:10.6]} 44. Rxa5 {[%clk
0:00:13.6]} 44... Nxb3 {[%clk 0:00:10.8]} 45. Rb5 {[%clk 0:00:14.1]} 45... Nd4
{[%clk 0:00:08.5]} 46. Rxc5 {[%clk 0:00:14]} 46... Rd8 {[%clk 0:00:08.6]} 47. a4
{[%clk 0:00:13.7]} 47... h4 {[%clk 0:00:06.9]} 48. gxh4+ {[%clk 0:00:13.4]}
48... Kxh4 {[%clk 0:00:07.3]} 49. Rc4 {[%clk 0:00:13.9]} 49... f4+ {[%clk
0:00:06.8]} 50. Nxf4 {[%clk 0:00:13.5]} 50... Nf5+ {[%clk 0:00:07]} 51. Ke4
{[%clk 0:00:13.4]} 51... Nd6+ {[%clk 0:00:06.9]} 52. Kd5 {[%clk 0:00:13]} 52...
Nxc4+ {[%clk 0:00:07.8]} 53. Kxc4 {[%clk 0:00:13.6]} 53... Kg4 {[%clk 0:00:07]}
54. Nd5 {[%clk 0:00:13.8]} 54... Kf3 {[%clk 0:00:06.8]} 55. a5 {[%clk 0:00:14]}
55... Ra8 {[%clk 0:00:06.7]} 56. Kb5 {[%clk 0:00:13.9]} 56... Rxa5+ {[%clk
0:00:06.7]} 57. Kxa5 {[%clk 0:00:14.8]} 57... Kxf2 {[%clk 0:00:07]} 1/2-1/2

[Event "Early-Titled-Tuesday-Blitz-May-14-2024"]
[Site "Chess.com"]
[Date "2024.05.14"]
[Round "3"]
[White "IlanSchnaider"]
[Black "KuzubovYuriy"]
[Result "1-0"]
[WhiteElo "2720"]
[BlackElo "2936"]
[TimeControl "180+1"]
[EndTime "8:30:06 PDT"]
[Termination "IlanSchnaider won by checkmate"]

1. e4 {[%clk 0:03:00.9]} 1... c5 {[%clk 0:02:59.7]} 2. Nf3 {[%clk 0:03:00.8]}
2... Nc6 {[%clk 0:03:00.2]} 3. d4 {[%clk 0:03:00.4]} 3... cxd4 {[%clk
0:03:00.6]} 4. Nxd4 {[%clk 0:03:01.3]} 4... g6 {[%clk 0:03:01.1]} 5. Nc3 {[%clk
0:03:00.4]} 5... Bg7 {[%clk 0:03:00.8]} 6. Be3 {[%clk 0:03:01]} 6... Nf6 {[%clk
0:02:58.9]} 7. Bc4 {[%clk 0:03:00.9]} 7... d6 {[%clk 0:02:59.6]} 8. f3 {[%clk
0:02:59]} 8... Qb6 {[%clk 0:02:57.9]} 9. Nf5 {[%clk 0:02:46.1]} 9... Qxb2 {[%clk
0:02:56.5]} 10. Nxg7+ {[%clk 0:02:13.9]} 10... Kf8 {[%clk 0:02:57]} 11. Bd2
{[%clk 0:01:39.4]} 11... Kxg7 {[%clk 0:02:49.5]} 12. O-O {[%clk 0:01:37.9]}
12... Qa3 {[%clk 0:02:42.3]} 13. Kh1 {[%clk 0:01:32.8]} 13... Bd7 {[%clk
0:02:30.6]} 14. Rb1 {[%clk 0:01:32.1]} 14... b6 {[%clk 0:02:23.8]} 15. Qe1
{[%clk 0:00:56.9]} 15... Qc5 {[%clk 0:01:54.6]} 16. Bb3 {[%clk 0:00:57]} 16...
Be6 {[%clk 0:01:44.2]} 17. Be3 {[%clk 0:00:27.7]} 17... Qe5 {[%clk 0:01:43.7]}
18. Ba4 {[%clk 0:00:22.9]} 18... Bc4 {[%clk 0:00:50.8]} 19. f4 {[%clk 0:00:23]}
19... Qh5 {[%clk 0:00:43.4]} 20. Bxc6 {[%clk 0:00:15.3]} 20... Rac8 {[%clk
0:00:43]} 21. Bb5 {[%clk 0:00:07.9]} 21... Bxf1 {[%clk 0:00:34.7]} 22. Bxf1
{[%clk 0:00:08.8]} 22... Nd7 {[%clk 0:00:24.3]} 23. Bd4+ {[%clk 0:00:08.4]}
23... e5 {[%clk 0:00:24]} 24. Be3 {[%clk 0:00:07.7]} 24... exf4 {[%clk
0:00:23.1]} 25. Bxf4 {[%clk 0:00:05.9]} 25... Rhe8 {[%clk 0:00:22.2]} 26. Qd2
{[%clk 0:00:03.9]} 26... Ne5 {[%clk 0:00:21.3]} 27. Nd5 {[%clk 0:00:03.8]} 27...
h6 {[%clk 0:00:16.1]} 28. Be2 {[%clk 0:00:04.1]} 28... Qh4 {[%clk 0:00:15.3]}
29. g3 {[%clk 0:00:04.1]} 29... Qh3 {[%clk 0:00:15.3]} 30. Bf1 {[%clk
0:00:04.2]} 30... Qh5 {[%clk 0:00:10.9]} 31. Be2 {[%clk 0:00:04]} 31... Qh3
{[%clk 0:00:11.2]} 32. Bf1 {[%clk 0:00:04.1]} 32... Qxh2+ {[%clk 0:00:08.7]} 33.
Qxh2 {[%clk 0:00:03.9]} 33... Ng4 {[%clk 0:00:08.6]} 34. Qd2 {[%clk 0:00:03.1]}
34... Rxe4 {[%clk 0:00:07.9]} 35. Bg2 {[%clk 0:00:03.5]} 35... Rec4 {[%clk
0:00:08]} 36. Rf1 {[%clk 0:00:03.1]} 36... Rxc2 {[%clk 0:00:08.2]} 37. Qd4+
{[%clk 0:00:03.3]} 37... f6 {[%clk 0:00:07.9]} 38. Nxf6 {[%clk 0:00:03.1]} 38...
Nxf6 {[%clk 0:00:05.7]} 39. Bxh6+ {[%clk 0:00:03.3]} 39... Kxh6 {[%clk
0:00:05.5]} 40. Qxf6 {[%clk 0:00:04]} 40... Rc1 {[%clk 0:00:05.5]} 41. Qf4+
{[%clk 0:00:03.7]} 41... g5 {[%clk 0:00:05.3]} 42. Qxc1 {[%clk 0:00:04.4]} 42...
Rxc1 {[%clk 0:00:04.7]} 43. Rxc1 {[%clk 0:00:05.3]} 43... Kg6 {[%clk 0:00:04.9]}
44. Rc6 {[%clk 0:00:06.2]} 44... Kf6 {[%clk 0:00:05.8]} 45. Rxd6+ {[%clk
0:00:06.9]} 45... Ke5 {[%clk 0:00:06.7]} 46. Rc6 {[%clk 0:00:07.6]} 46... Kd4
{[%clk 0:00:07.4]} 47. Rc7 {[%clk 0:00:08.3]} 47... Ke3 {[%clk 0:00:08.3]} 48.
Rxa7 {[%clk 0:00:08.9]} 48... Kf2 {[%clk 0:00:09.2]} 49. Rb7 {[%clk 0:00:09.4]}
49... g4 {[%clk 0:00:10.1]} 50. Rxb6 {[%clk 0:00:09.5]} 50... Kxg3 {[%clk
0:00:10.5]} 51. Rb4 {[%clk 0:00:09.5]} 51... Kh4 {[%clk 0:00:10.2]} 52. a4
{[%clk 0:00:09.5]} 52... Kg5 {[%clk 0:00:10.7]} 53. a5 {[%clk 0:00:10]} 53...
Kf5 {[%clk 0:00:11.1]} 54. a6 {[%clk 0:00:10.2]} 54... g3 {[%clk 0:00:12]} 55.
a7 {[%clk 0:00:10.7]} 55... Ke5 {[%clk 0:00:12.9]} 56. a8=Q {[%clk 0:00:11.3]}
56... Kd6 {[%clk 0:00:13.8]} 57. Qa5 {[%clk 0:00:11.7]} 57... Ke6 {[%clk
0:00:14.6]} 58. Rb6+ {[%clk 0:00:12.3]} 58... Kf7 {[%clk 0:00:15.5]} 59. Qa7+
{[%clk 0:00:13.2]} 59... Ke8 {[%clk 0:00:15.6]} 60. Rb8# {[%clk 0:00:14.1]} 1-0

[Event "Early-Titled-Tuesday-Blitz-May-14-2024"]
[Site "Chess.com"]
[Date "2024.05.14"]
[Round "3"]
[White "Baronessa08"]
[Black "JanMur7"]
[Result "1-0"]
[WhiteElo "2595"]
[BlackElo "2284"]
[TimeControl "180+1"]
[EndTime "8:30:06 PDT"]
[Termination "Baronessa08 won by checkmate"]

1. Nf3 {[%clk 0:03:00.9]} 1... Nf6 {[%clk 0:02:59.6]} 2. b3 {[%clk 0:02:59]}
2... d5 {[%clk 0:02:56.3]} 3. Bb2 {[%clk 0:02:59.4]} 3... e6 {[%clk 0:02:56.4]}
4. g3 {[%clk 0:02:58.6]} 4... b6 {[%clk 0:02:49.7]} 5. Bg2 {[%clk 0:02:59]} 5...
Bb7 {[%clk 0:02:50.2]} 6. d4 {[%clk 0:02:51.3]} 6... Nbd7 {[%clk 0:02:49.9]} 7.
O-O {[%clk 0:02:50.7]} 7... Bd6 {[%clk 0:02:49.1]} 8. Ne5 {[%clk 0:02:50.5]}
8... O-O {[%clk 0:02:37.4]} 9. e3 {[%clk 0:02:50.6]} 9... c5 {[%clk 0:02:36.4]}
10. Nd2 {[%clk 0:02:46.8]} 10... Rc8 {[%clk 0:02:34.7]} 11. Re1 {[%clk
0:02:45.2]} 11... Qc7 {[%clk 0:02:34.6]} 12. Nxd7 {[%clk 0:02:40.5]} 12... Nxd7
{[%clk 0:02:18.3]} 13. dxc5 {[%clk 0:02:40.6]} 13... bxc5 {[%clk 0:02:15.9]} 14.
c4 {[%clk 0:02:36.3]} 14... Be5 {[%clk 0:02:11.3]} 15. Bxe5 {[%clk 0:02:29.9]}
15... Nxe5 {[%clk 0:02:12.2]} 16. cxd5 {[%clk 0:02:29.4]} 16... Bxd5 {[%clk
0:02:09.1]} 17. e4 {[%clk 0:02:18]} 17... Bb7 {[%clk 0:02:05.1]} 18. f4 {[%clk
0:02:10.9]} 18... Nd3 {[%clk 0:01:56.3]} 19. Re3 {[%clk 0:02:10.7]} 19... Rfd8
{[%clk 0:01:54.9]} 20. Qe2 {[%clk 0:02:06.9]} 20... Qd6 {[%clk 0:01:51]} 21. Nc4
{[%clk 0:01:23.3]} 21... Qd4 {[%clk 0:01:50.6]} 22. Rf1 {[%clk 0:01:16]} 22...
Ba6 {[%clk 0:01:47]} 23. Kh1 {[%clk 0:01:05.7]} 23... Bxc4 {[%clk 0:01:34.4]}
24. bxc4 {[%clk 0:01:06.6]} 24... Qxc4 {[%clk 0:01:26.8]} 25. e5 {[%clk
0:01:07]} 25... Rd4 {[%clk 0:01:13.5]} 26. Be4 {[%clk 0:00:51.5]} 26... Nc1
{[%clk 0:01:01.8]} 27. Qxc4 {[%clk 0:00:21.6]} 27... Rxc4 {[%clk 0:01:02.7]} 28.
a3 {[%clk 0:00:19]} 28... Rd8 {[%clk 0:00:54.4]} 29. f5 {[%clk 0:00:17.2]} 29...
exf5 {[%clk 0:00:49.3]} 30. Bxf5 {[%clk 0:00:17]} 30... g6 {[%clk 0:00:43.5]}
31. Be4 {[%clk 0:00:15]} 31... Rdd4 {[%clk 0:00:38.2]} 32. Bc6 {[%clk
0:00:14.7]} 32... Rd3 {[%clk 0:00:11.2]} 33. Ree1 {[%clk 0:00:12.3]} 33... Nb3
{[%clk 0:00:05.1]} 34. Bb5 {[%clk 0:00:12.5]} 34... Rcd4 {[%clk 0:00:04.5]} 35.
Bxd3 {[%clk 0:00:12.3]} 35... Rxd3 {[%clk 0:00:05.4]} 36. e6 {[%clk 0:00:10.5]}
36... fxe6 {[%clk 0:00:05]} 37. Rxe6 {[%clk 0:00:11.4]} 37... c4 {[%clk
0:00:05.4]} 38. Rc6 {[%clk 0:00:11.3]} 38... Nd2 {[%clk 0:00:04]} 39. Re1 {[%clk
0:00:10.3]} 39... Kf8 {[%clk 0:00:02.3]} 40. Kg2 {[%clk 0:00:08]} 40... c3
{[%clk 0:00:02.6]} 41. Rc7 {[%clk 0:00:06.5]} 41... Nb3 {[%clk 0:00:02.6]} 42.
Re6 {[%clk 0:00:04]} 42... Nd4 {[%clk 0:00:02.3]} 43. Rd6 {[%clk 0:00:03.1]}
43... Ke8 {[%clk 0:00:01.5]} 44. Ra6 {[%clk 0:00:02.8]} 44... c2 {[%clk
0:00:01.4]} 45. Raxa7 {[%clk 0:00:02.4]} 45... Rd2+ {[%clk 0:00:01.8]} 46. Kh3
{[%clk 0:00:02.3]} 46... Kd8 {[%clk 0:00:01.7]} 47. Rg7 {[%clk 0:00:02.2]} 47...
Ke8 {[%clk 0:00:01.2]} 48. Ra8# {[%clk 0:00:02.2]} 1-0

[Event "Early-Titled-Tuesday-Blitz-May-14-2024"]
[Site "Chess.com"]
[Date "2024.05.14"]
[Round "3"]
[White "average_trans"]
[Black "MatyChess1"]
[Result "0-1"]
[WhiteElo "2350"]
[BlackElo "2664"]
[TimeControl "180+1"]
[EndTime "8:30:07 PDT"]
[Termination "MatyChess1 won by resignation"]

1. b3 {[%clk 0:03:00.9]} 1... d5 {[%clk 0:02:59.3]} 2. Bb2 {[%clk 0:03:00.8]}
2... Bg4 {[%clk 0:03:00]} 3. h3 {[%clk 0:02:58.3]} 3... Bh5 {[%clk 0:03:00.1]}
4. g4 {[%clk 0:02:57.6]} 4... Bg6 {[%clk 0:03:00.6]} 5. Bg2 {[%clk 0:02:57.7]}
5... Nc6 {[%clk 0:02:59.2]} 6. a3 {[%clk 0:02:56]} 6... e5 {[%clk 0:02:59.3]} 7.
e3 {[%clk 0:02:56]} 7... h5 {[%clk 0:02:58.5]} 8. Nc3 {[%clk 0:02:55.3]} 8... d4
{[%clk 0:02:54.3]} 9. Nce2 {[%clk 0:02:42.9]} 9... hxg4 {[%clk 0:02:45.2]} 10.
hxg4 {[%clk 0:02:42.3]} 10... Rxh1 {[%clk 0:02:46.1]} 11. Bxh1 {[%clk
0:02:42.7]} 11... Qh4 {[%clk 0:02:47]} 12. Ng3 {[%clk 0:02:38.2]} 12... Nf6
{[%clk 0:02:46.4]} 13. exd4 {[%clk 0:02:29.2]} 13... O-O-O {[%clk 0:02:30.8]}
14. dxe5 {[%clk 0:02:21.9]} 14... Nxg4 {[%clk 0:02:28.6]} 15. Bxc6 {[%clk
0:02:01.5]} 15... bxc6 {[%clk 0:02:29.5]} 16. Qf3 {[%clk 0:01:55.4]} 16... Kb7
{[%clk 0:01:24.2]} 17. O-O-O {[%clk 0:01:48.6]} 17... Bc5 {[%clk 0:01:16.4]} 18.
d4 {[%clk 0:01:32.5]} 18... Be7 {[%clk 0:01:16.9]} 19. Kb1 {[%clk 0:01:17.7]}
19... Nh2 {[%clk 0:00:46.7]} 20. Qe2 {[%clk 0:00:59.7]} 20... Qg4 {[%clk
0:00:44.4]} 21. Qxg4 {[%clk 0:00:48.8]} 21... Nxg4 {[%clk 0:00:45.3]} 22. Rf1
{[%clk 0:00:38.2]} 22... Bh4 {[%clk 0:00:43.6]} 23. N1e2 {[%clk 0:00:35.6]}
23... c5 {[%clk 0:00:42]} 24. f4 {[%clk 0:00:25]} 24... Ne3 {[%clk 0:00:38.7]}
25. Rf3 {[%clk 0:00:23.6]} 25... Nf5 {[%clk 0:00:14.9]} 26. Nxf5 {[%clk
0:00:22.9]} 26... Bxf5 {[%clk 0:00:15.8]} 27. dxc5 {[%clk 0:00:20.4]} 27... Bg4
{[%clk 0:00:15.8]} 28. Rd3 {[%clk 0:00:20.3]} 28... Rxd3 {[%clk 0:00:15.1]} 29.
cxd3 {[%clk 0:00:20.5]} 29... Bxe2 {[%clk 0:00:15.7]} 30. f5 {[%clk 0:00:20.1]}
30... Bxd3+ {[%clk 0:00:15.3]} 31. Kc1 {[%clk 0:00:19.3]} 31... Bxf5 {[%clk
0:00:15.9]} 32. Kd2 {[%clk 0:00:19.6]} 32... Be6 {[%clk 0:00:15.9]} 33. Ke3
{[%clk 0:00:19.8]} 33... Bxb3 {[%clk 0:00:15.6]} 34. e6 {[%clk 0:00:20.1]} 34...
Bxe6 {[%clk 0:00:15.2]} 35. Bxg7 {[%clk 0:00:20.4]} 35... Kc6 {[%clk 0:00:15.9]}
36. Kd4 {[%clk 0:00:20.5]} 36... Be7 {[%clk 0:00:16.1]} 37. Kc3 {[%clk
0:00:17.9]} 37... Bxc5 {[%clk 0:00:16.5]} 38. Kb2 {[%clk 0:00:18.5]} 38... a6
{[%clk 0:00:17.1]} 39. Be5 {[%clk 0:00:18.8]} 39... Bd6 {[%clk 0:00:16.5]} 40.
Bd4 {[%clk 0:00:19]} 40... Kb5 {[%clk 0:00:17.1]} 41. Be3 {[%clk 0:00:17.9]}
41... Ka4 {[%clk 0:00:17.3]} 42. Bd4 {[%clk 0:00:18]} 42... Bxa3+ {[%clk
0:00:17.7]} 43. Kc3 {[%clk 0:00:17.8]} 43... Bd6 {[%clk 0:00:18.6]} 44. Kb2
{[%clk 0:00:18]} 44... f5 {[%clk 0:00:19.5]} 45. Bf2 {[%clk 0:00:17.7]} 45... c5
{[%clk 0:00:20]} 46. Bg1 {[%clk 0:00:18]} 46... Be5+ {[%clk 0:00:20.4]} 47. Kc2
{[%clk 0:00:16.5]} 47... Bd4 {[%clk 0:00:20.7]} 48. Bh2 {[%clk 0:00:16.7]} 48...
Bc4 {[%clk 0:00:20.3]} 49. Bd6 {[%clk 0:00:16.5]} 49... Kb5 {[%clk 0:00:20.7]}
50. Bf4 {[%clk 0:00:16.7]} 50... a5 {[%clk 0:00:21.3]} 51. Bd6 {[%clk
0:00:16.7]} 51... a4 {[%clk 0:00:21.8]} 52. Bf4 {[%clk 0:00:15.2]} 52... a3
{[%clk 0:00:22.2]} 53. Bc1 {[%clk 0:00:15.4]} 53... a2 {[%clk 0:00:21.9]} 54.
Ba3 {[%clk 0:00:15.1]} 54... a1=Q {[%clk 0:00:21.2]} 0-1